fUST/lending_fUST_20250605
["ID","MTS","AMOUNT","RATE_DAILY","PERIOD"]
[364398369,1749090644740,-440.0,0.00018243,2]
[364398371,1749090644750,-440.0,0.00018243,2]
[364398373,1749090644760,-440.0,0.00018243,2]
[364398375,1749090644770,-440.0,0.00018243,2]
[364398377,1749090644779,-440.0,0.00018243,2]
[364398379,1749090644789,-440.0,0.00018243,2]
[364398381,1749090644798,-593.51,0.00018243,2]
[364398383,1749090644808,-440.0,0.00018243,2]
[364398385,1749090644818,-440.0,0.00018243,2]
[364398387,1749090644827,-440.0,0.00018243,2]
[364398389,1749090644837,-440.0,0.00018243,2]
[364398391,1749090644847,-440.0,0.00018243,2]
[364398392,1749090644857,-458.2,0.00018243,2]
[364398394,1749090644866,-440.0,0.00018243,2]
[364398396,1749090644875,-440.0,0.00018243,2]
[364398398,1749090644884,-440.0,0.00018243,2]
[364398400,1749090644894,-440.0,0.00018243,2]
[364398402,1749090644903,-550.07,0.00018243,2]
[364398404,1749090644913,-440.0,0.00018243,2]
[364398406,1749090644922,-440.0,0.00018243,2]
[364398408,1749090644931,-1759.18,0.00018243,2]
[364398410,1749090644940,-408.19750712,0.00018244,2]
[364398421,1749090645040,-394.6117867,0.00018244,2]
[364398423,1749090645050,-440.0,0.00018244,2]
[364398425,1749090645061,-350.0,0.00018244,2]
[364398427,1749090645070,-337.79747105,0.00018244,2]
[364398429,1749090645080,-440.0,0.00018244,2]
[364398431,1749090645089,-501.67205913,0.00018244,2]
[364398433,1749090645099,-440.0,0.00018244,2]
[364398435,1749090645110,-400.32682135,0.00018244,2]
[364398437,1749090645119,-440.0,0.00018244,2]
[364398439,1749090645129,-432.98337971,0.00018244,2]
[364398442,1749090645139,-440.0,0.00018244,2]
[364398444,1749090645149,-473.01,0.00018244,2]
[364398446,1749090645159,-804.08,0.00018244,2]
[364398448,1749090645168,-440.0,0.00018244,2]
[364398450,1749090645179,-357.51044257,0.00018244,2]
[364398452,1749090645189,-502.34,0.00018244,2]
[364398454,1749090645198,-830.87,0.00018244,2]
[364398456,1749090645207,-440.0,0.00018244,2]
[364398458,1749090645217,-440.0,0.00018244,2]
[364398460,1749090645227,-851.67,0.00018244,2]
[364398462,1749090645237,-440.0,0.00018244,2]
[364398463,1749090645247,-1485.65,0.00018244,2]
[364398465,1749090645257,-440.0,0.00018244,2]
[364398468,1749090645267,-440.0,0.00018245,2]
[364398469,1749090645277,-410.0,0.00018245,2]
[364398472,1749090645287,-400.09794815,0.00018245,2]
[364398474,1749090645296,-440.0,0.00018245,2]
[364398476,1749090645308,-440.0,0.00018245,2]
[364398477,1749090645318,-396.15880836,0.00018245,2]
[364398479,1749090645327,-440.0,0.00018245,2]
[364398481,1749090645336,-440.0,0.00018245,2]
[364398483,1749090645345,-484.00177406,0.00018296,2]
[364398485,1749090645355,-500.96398238,0.00018345,2]
[364398487,1749090645365,-448.23855278,0.00018345,2]
[364398489,1749090645375,-595.84098643,0.00018346,2]
[364398491,1749090645384,-500.0,0.00018346,2]
[364398493,1749090645395,-503.62082291,0.00018346,2]
[364398495,1749090645404,-322.45234264,0.00018346,2]
[364398497,1749090645415,-171.92930789,0.00018346,2]
[364398499,1749090645425,-500.95700191,0.00018346,2]
[364398501,1749090645435,-501.18292868,0.00018364,2]
[364398503,1749090645445,-502.13275574,0.00018364,2]
[364398505,1749090645454,-500.73978775,0.00018364,2]
[364398507,1749090645465,-505.07122456,0.00018369,2]
[364398509,1749090645475,-500.55075812,0.00018369,2]
[364398511,1749090645486,-501.05556748,0.00018369,2]
[364398514,1749090645496,-500.0,0.00018369,2]
[364398516,1749090645506,-500.0,0.00018386,2]
[364398517,1749090645516,-500.0,0.00018386,2]
[364398520,1749090645526,-500.71506273,0.00018386,2]
[364398522,1749090645535,-501.76826203,0.00018416,2]
[364398523,1749090645545,-501.23668465,0.00018416,2]
[364398526,1749090645555,-502.35243262,0.00018416,2]
[364398527,1749090645564,-408.09886077,0.00018478,2]
[364398530,1749090645574,-440.0,0.00018516,2]
[364398531,1749090645583,-440.0,0.00018516,2]
[364398533,1749090645593,-440.0,0.00018516,2]
[364398535,1749090645602,-942.05,0.00018516,2]
[364398537,1749090645612,-1228.62,0.00018516,2]
[364398539,1749090645621,-440.0,0.00018516,2]
[364398541,1749090645631,-440.0,0.00018516,2]
[364398543,1749090645641,-440.0,0.00018516,2]
[364398545,1749090645651,-440.0,0.00018517,2]
[364398547,1749090645661,-440.0,0.00018517,2]
[364398549,1749090645672,-440.0,0.00018517,2]
[364398550,1749090645685,-440.0,0.00018517,2]
[364398551,1749090645695,-440.0,0.00018517,2]
[364398552,1749090645705,-1668.29,0.00018517,2]
[364398554,1749090645716,-591.16,0.00018517,2]
[364398556,1749090645726,-440.0,0.00018517,2]
[364398559,1749090645735,-1968.95,0.00018517,2]
[364398561,1749090645745,-440.0,0.00018517,2]
[364398564,1749090645756,-277.02726689,0.00018517,2]
[364398568,1749090645766,-440.0,0.00018517,2]
[364398572,1749090645776,-440.0,0.00018517,2]
[364398575,1749090645786,-440.0,0.00018517,2]
[364398577,1749090645795,-440.0,0.00018517,2]
[364398579,1749090645805,-440.0,0.00018517,2]
[364398582,1749090645815,-593.51,0.00018517,2]
[364398585,1749090645824,-440.0,0.00018517,2]
[364398589,1749090645834,-440.0,0.00018517,2]
[364398593,1749090645844,-440.0,0.00018517,2]
[364398598,1749090645855,-440.0,0.00018517,2]
[364398601,1749090645865,-440.0,0.00018517,2]
[364398604,1749090645876,-440.0,0.00018517,2]
[364398608,1749090645885,-440.0,0.00018517,2]
[364398611,1749090645895,-440.0,0.00018517,2]
[364398614,1749090645904,-550.07,0.00018517,2]
[364398617,1749090645914,-440.0,0.00018517,2]
[364398620,1749090645924,-440.0,0.00018517,2]
[364398624,1749090645934,-1759.18,0.00018517,2]
[364398628,1749090645944,-2853.2,0.00018518,2]
[364398632,1749090645953,-2853.1,0.00018518,2]
[364398637,1749090645963,-440.0,0.00018518,2]
[364398641,1749090645972,-440.0,0.00018518,2]
[364398644,1749090645982,-440.0,0.00018518,2]
[364398647,1749090645991,-440.0,0.00018518,2]
[364398650,1749090646001,-349.61774601,0.00018518,2]
[364398653,1749090646010,-473.01,0.00018518,2]
[364398656,1749090646020,-804.08,0.00018518,2]
[364398659,1749090646030,-440.0,0.00018518,2]
[364398662,1749090646039,-502.34,0.00018518,2]
[364398664,1749090646048,-830.87,0.00018518,2]
[364398668,1749090646058,-851.67,0.00018518,2]
[364398670,1749090646068,-440.0,0.00018518,2]
[364398674,1749090646077,-1485.65,0.00018518,2]
[364398677,1749090646087,-440.0,0.00018518,2]
[364398680,1749090646096,-440.0,0.00018519,2]
[364398683,1749090646105,-440.0,0.00018519,2]
[364398685,1749090646117,-440.0,0.00018519,2]
[364398688,1749090646126,-440.0,0.00018519,2]
[364398691,1749090646135,-440.0,0.00018519,2]
[364398693,1749090646144,-503.91009548,0.00018653,2]
[364398695,1749090646153,-507.04944435,0.00018653,2]
[364398697,1749090646163,-503.44937354,0.00018653,2]
[364398699,1749090646172,-513.19826856,0.00018653,2]
[364398701,1749090646181,-505.72637462,0.00018681,2]
[364398704,1749090646191,-1004.34099936,0.00018681,2]
[364398706,1749090646200,-1553.90674133,0.00018748,2]
[364398708,1749090646210,-440.0,0.0001879,2]
[364398710,1749090646220,-440.0,0.0001879,2]
[364398712,1749090646230,-942.05,0.0001879,2]
[364398714,1749090646240,-1228.62,0.0001879,2]
[364398716,1749090646250,-440.0,0.0001879,2]
[364398718,1749090646259,-1668.29,0.00018791,2]
[364398720,1749090646269,-591.16,0.00018791,2]
[364398722,1749090646279,-440.0,0.00018791,2]
[364398724,1749090646288,-1968.95,0.00018791,2]
[364398726,1749090646298,-440.0,0.00018791,2]
[364398728,1749090646307,-160.44,0.00018791,2]
[364398730,1749090646317,-530.99,0.00018791,2]
[364398732,1749090646327,-440.0,0.00018791,2]
[364398734,1749090646336,-593.51,0.00018791,2]
[364398736,1749090646345,-276.05,0.00018791,2]
[364398738,1749090646355,-440.0,0.00018791,2]
[364398740,1749090646364,-440.0,0.00018791,2]
[364398742,1749090646374,-440.0,0.00018791,2]
[364398744,1749090646384,-440.0,0.00018791,2]
[364398746,1749090646393,-440.0,0.00018791,2]
[364398748,1749090646403,-440.0,0.00018791,2]
[364398750,1749090646412,-440.0,0.00018791,2]
[364398752,1749090646422,-550.07,0.00018791,2]
[364398754,1749090646432,-430.0,0.00018791,2]
[364398756,1749090646441,-440.0,0.00018791,2]
[364398760,1749090646452,-1759.18,0.00018791,2]
[364398762,1749090646461,-440.0,0.00018792,2]
[364398766,1749090646472,-440.0,0.00018792,2]
[364398769,1749090646481,-473.01,0.00018792,2]
[364398772,1749090646491,-804.08,0.00018792,2]
[364398774,1749090646500,-502.34,0.00018792,2]
[364398778,1749090646510,-830.87,0.00018792,2]
[364398781,1749090646520,-851.67,0.00018792,2]
[364398784,1749090646529,-1485.65,0.00018792,2]
[364398787,1749090646538,-440.0,0.00018792,2]
[364398790,1749090646548,-1000.0,0.00018894,2]
[364398793,1749090646557,-1000.0,0.00018917,2]
[364398796,1749090646567,-1003.44335296,0.00018934,2]
[364398798,1749090646576,-420.0,0.00019017,2]
[364398800,1749090646588,-773.36,0.00019055,3]
[364398803,1749090646598,-386.68,0.00019055,3]
[364398806,1749090646609,-209.54,0.00019064,2]
[364398809,1749090646618,-942.05,0.00019064,2]
[364398814,1749090646628,-1228.62,0.00019064,2]
[364398817,1749090646639,-440.0,0.00019064,2]
[364398822,1749090646648,-1668.29,0.00019065,2]
[364398824,1749090646658,-591.16,0.00019065,2]
[364398827,1749090646667,-440.0,0.00019065,2]
[364398831,1749090646681,-1968.95,0.00019065,2]
[364398833,1749090646691,-440.0,0.00019065,2]
[364398835,1749090646700,-197.52447671,0.00019065,2]
[364398837,1749090646710,-593.51,0.00019065,2]
[364398839,1749090646721,-440.0,0.00019065,2]
[364398841,1749090646730,-440.0,0.00019065,2]
[364398843,1749090646740,-391.9200855,0.00019065,2]
[364398859,1749090646874,-420.0,0.00017694,2]
[364398861,1749090646883,-928.24,0.00017968,2]
[364398863,1749090646892,-48.0799145,0.00019065,2]
[364398865,1749090646902,-440.0,0.00019065,2]
[364398867,1749090646911,-440.0,0.00019065,2]
[364398869,1749090646922,-440.0,0.00019065,2]
[364398871,1749090646931,-272.67,0.00019065,2]
[364398873,1749090646940,-550.07,0.00019065,2]
[364398875,1749090646949,-440.0,0.00019065,2]
[364398877,1749090646959,-1759.18,0.00019065,2]
[364398879,1749090646968,-421.95,0.00019066,2]
[364398881,1749090646977,-440.0,0.00019066,2]
[364398883,1749090646986,-473.01,0.00019066,2]
[364398885,1749090646996,-804.08,0.00019066,2]
[364398887,1749090647005,-502.34,0.00019066,2]
[364398889,1749090647014,-830.87,0.00019066,2]
[364398891,1749090647023,-1.99653697,0.00019066,2]
[364398893,1749090647035,-849.67346303,0.00019066,2]
[364398895,1749090647044,-1485.65,0.00019066,2]
[364398897,1749090647054,-440.0,0.00019066,2]
[364398909,1749090647151,-160.0,0.00019148,2]
[364398911,1749090647161,-212.94059491,0.00019148,2]
[364398913,1749090647170,-160.0,0.00019148,2]
[364398915,1749090647179,-638.55033006,0.00019149,2]
[364398918,1749090647191,-204.01216994,0.00019149,2]
[364398920,1749090647200,-421.6260615,0.00019178,2]
[364398921,1749090647210,-500.0,0.00019178,2]
[364398923,1749090647219,-500.0,0.00019178,2]
[364398925,1749090647228,-500.0,0.00019178,2]
[364398927,1749090647238,-500.0,0.00019178,2]
[364398930,1749090647248,-500.0,0.00019178,2]
[364398932,1749090647258,-184.44341932,0.00019178,2]
[364398934,1749090647269,-315.55658068,0.00019178,2]
[364398936,1749090647279,-500.0,0.00019178,2]
[364398938,1749090647289,-500.0,0.00019178,2]
[364398940,1749090647299,-500.0,0.00019178,2]
[364398942,1749090647308,-500.0,0.00019178,2]
[364398944,1749090647317,-280.44341931,0.00019178,2]
[364398946,1749090647329,-219.55658069,0.00019178,2]
[364398948,1749090647339,-500.0,0.00019178,2]
[364398950,1749090647348,-500.0,0.00019178,2]
[364398952,1749090647357,-500.0,0.00019178,2]
[364398954,1749090647367,-500.0,0.00019178,2]
[364398956,1749090647377,-500.0,0.00019178,2]
[364398958,1749090647386,-500.0,0.00019178,2]
[364398960,1749090647397,-500.0,0.00019178,2]
[364398963,1749090647408,-500.0,0.00019178,2]
[364398964,1749090647417,-500.0,0.00019178,2]
[364398967,1749090647427,-500.0,0.00019178,2]
[364398968,1749090647437,-500.0,0.00019178,2]
[364398971,1749090647447,-436.49722316,0.00019178,2]
[364398973,1749090647456,-500.00000001,0.00019178,2]
[364398975,1749090647466,-500.0,0.00019178,2]
[364398977,1749090647475,-500.0,0.00019178,2]
[364398978,1749090647485,-500.0,0.00019178,2]
[364398981,1749090647494,-500.0,0.00019178,2]
[364398982,1749090647503,-500.0,0.00019178,2]
[364398984,1749090647513,-500.0,0.00019178,2]
[364398986,1749090647522,-500.0,0.00019178,2]
[364398988,1749090647531,-500.0,0.00019178,2]
[364398990,1749090647541,-500.0,0.00019178,2]
[364398992,1749090647550,-500.0,0.00019178,2]
[364398994,1749090647559,-500.0,0.00019178,2]
[364398996,1749090647569,-500.0,0.00019178,2]
[364398998,1749090647578,-500.0,0.00019178,2]
[364399000,1749090647587,-500.0,0.00019178,2]
[364399003,1749090647598,-500.0,0.00019178,2]
[364399004,1749090647607,-500.0,0.00019178,2]
[364399006,1749090647617,-500.0,0.00019178,2]
[364399008,1749090647627,-500.0,0.00019178,2]
[364399010,1749090647637,-500.0,0.00019178,2]
[364399013,1749090647646,-500.0,0.00019178,2]
[364399015,1749090647655,-500.0,0.00019178,2]
[364399017,1749090647667,-500.0,0.00019178,2]
[364399019,1749090647679,-500.0,0.00019178,2]
[364399021,1749090647688,-210.51058477,0.00019178,2]
[364399023,1749090647699,-500.0,0.00019178,2]
[364399025,1749090647708,-500.0,0.00019178,2]
[364399027,1749090647720,-500.0,0.00019178,2]
[364399029,1749090647730,-500.0,0.00019178,2]
[364399031,1749090647741,-500.0,0.00019178,2]
[364399033,1749090647751,-500.0,0.00019178,2]
[364399035,1749090647762,-500.0,0.00019178,2]
[364399037,1749090647773,-500.0,0.00019178,2]
[364399039,1749090647785,-500.0,0.00019178,2]
[364399041,1749090647795,-500.0,0.00019178,2]
[364399043,1749090647804,-500.0,0.00019178,2]
[364399045,1749090647813,-500.0,0.00019178,2]
[364399047,1749090647823,-500.0,0.00019178,2]
[364399049,1749090647833,-500.0,0.00019178,2]
[364399051,1749090647843,-500.0,0.00019178,2]
[364399053,1749090647853,-500.0,0.00019178,2]
[364399056,1749090647865,-500.0,0.00019178,2]
[364399058,1749090647874,-500.0,0.00019178,2]
[364399060,1749090647884,-500.0,0.00019178,2]
[364399062,1749090647894,-500.0,0.00019178,2]
[364399064,1749090647903,-500.0,0.00019178,2]
[364399066,1749090647912,-500.0,0.00019178,2]
[364399068,1749090647923,-500.0,0.00019178,2]
[364399070,1749090647933,-500.0,0.00019178,2]
[364399072,1749090647944,-500.0,0.00019178,2]
[364399074,1749090647954,-500.0,0.00019178,2]
[364399076,1749090647964,-500.0,0.00019178,2]
[364399078,1749090647975,-500.0,0.00019178,2]
[364399080,1749090647984,-500.0,0.00019178,2]
[364399082,1749090647994,-500.0,0.00019178,2]
[364399084,1749090648004,-500.0,0.00019178,2]
[364399086,1749090648013,-500.0,0.00019178,2]
[364399088,1749090648022,-500.0,0.00019178,2]
[364399090,1749090648032,-350.0,0.00019178,2]
[364399092,1749090648041,-500.0,0.00019178,2]
[364399094,1749090648051,-500.0,0.00019178,2]
[364399096,1749090648061,-500.0,0.00019178,2]
[364399098,1749090648070,-687.64444519,0.00019178,2]
[364399100,1749090648080,-687.64444519,0.00019178,2]
[364399102,1749090648089,-687.64444519,0.00019178,2]
[364399104,1749090648099,-687.64444519,0.00019178,2]
[364399106,1749090648109,-687.64444519,0.00019178,2]
[364399108,1749090648120,-687.64444519,0.00019178,2]
[364399110,1749090648129,-687.64444517,0.00019178,2]
[364399112,1749090648138,-311.472412,0.00019178,2]
[364399114,1749090648149,-392.64714788,0.00019229,2]
[364399116,1749090648158,-484.00177406,0.0001927,2]
[364399118,1749090648169,-1553.90674133,0.00019324,2]
[364399120,1749090648178,-25559.03518315,0.00019329,2]
[364399122,1749090648189,-942.05,0.00019338,2]
[364399125,1749090648200,-1228.62,0.00019338,2]
[364399127,1749090648210,-440.0,0.00019338,2]
[364399129,1749090648220,-1668.29,0.00019339,2]
[364399131,1749090648230,-591.16,0.00019339,2]
[364399133,1749090648241,-440.0,0.00019339,2]
[364399135,1749090648251,-1968.95,0.00019339,2]
[364399137,1749090648261,-440.0,0.00019339,2]
[364399139,1749090648271,-593.51,0.00019339,2]
[364399141,1749090648282,-440.0,0.00019339,2]
[364399143,1749090648292,-451.79119862,0.00019339,2]
[364399145,1749090648303,-440.0,0.00019339,2]
[364399147,1749090648313,-440.0,0.00019339,2]
[364399149,1749090648323,-424.12466354,0.00019339,2]
[364399151,1749090648334,-440.0,0.00019339,2]
[364399153,1749090648344,-550.07,0.00019339,2]
[364399155,1749090648354,-440.0,0.00019339,2]
[364399157,1749090648364,-1759.18,0.00019339,2]
[364399159,1749090648374,-440.0,0.0001934,2]
[364399161,1749090648384,-473.01,0.0001934,2]
[364399163,1749090648393,-804.08,0.0001934,2]
[364399165,1749090648403,-502.34,0.0001934,2]
[364399167,1749090648412,-830.87,0.0001934,2]
[364399169,1749090648422,-851.67,0.0001934,2]
[364399171,1749090648431,-1485.65,0.0001934,2]
[364399173,1749090648440,-440.0,0.0001934,2]
[364399175,1749090648450,-500.0,0.00019499,2]
[364399177,1749090648459,-500.0,0.00019499,2]
[364399179,1749090648469,-342.28740036,0.00019499,2]
[364399181,1749090648478,-500.0,0.00019499,2]
[364399183,1749090648488,-500.0,0.00019499,2]
[364399185,1749090648498,-500.0,0.00019499,2]
[364399187,1749090648507,-500.0,0.00019499,2]
[364399189,1749090648521,-500.0,0.00019499,2]
[364399190,1749090648530,-500.0,0.00019499,2]
[364399192,1749090648540,-500.0,0.00019499,2]
[364399194,1749090648551,-379858.05031678,0.000195,2]
[364399196,1749090648561,-151.755329,0.000195,2]
[364399198,1749090648570,-151.0,0.000195,2]
[364399200,1749090648580,-151.0,0.000195,2]
[364399203,1749090648589,-942.05,0.00019612,2]
[364399205,1749090648600,-1228.62,0.00019612,2]
[364399207,1749090648609,-440.0,0.00019612,2]
[364399209,1749090648619,-1668.29,0.00019613,2]
[364399211,1749090648629,-591.16,0.00019613,2]
[364399213,1749090648638,-440.0,0.00019613,2]
[364399215,1749090648648,-1968.95,0.00019613,2]
[364399217,1749090648658,-440.0,0.00019613,2]
[364399219,1749090648667,-593.51,0.00019613,2]
[364399221,1749090648682,-440.0,0.00019613,2]
[364399223,1749090648693,-440.0,0.00019613,2]
[364399225,1749090648703,-440.0,0.00019613,2]
[364399227,1749090648713,-440.0,0.00019613,2]
[364399229,1749090648722,-550.07,0.00019613,2]
[364399231,1749090648731,-440.0,0.00019613,2]
[364399233,1749090648741,-1759.18,0.00019613,2]
[364399235,1749090648753,-440.0,0.00019614,2]
[364399237,1749090648764,-473.01,0.00019614,2]
[364399239,1749090648775,-804.08,0.00019614,2]
[364399241,1749090648785,-502.34,0.00019614,2]
[364399244,1749090648795,-830.87,0.00019614,2]
[364399245,1749090648805,-851.67,0.00019614,2]
[364399248,1749090648815,-1485.65,0.00019614,2]
[364399250,1749090648825,-440.0,0.00019614,2]
[364399252,1749090648835,-450.0,0.00019726,2]
[364399254,1749090648845,-450.0,0.00019726,2]
[364399256,1749090648855,-450.0,0.00019726,2]
[364399258,1749090648865,-450.0,0.00019726,2]
[364399260,1749090648875,-450.0,0.00019726,2]
[364399262,1749090648884,-450.0,0.00019726,2]
[364399264,1749090648893,-450.0,0.00019726,2]
[364399266,1749090648903,-450.0,0.00019726,2]
[364399268,1749090648913,-450.0,0.00019726,2]
[364399270,1749090648922,-180.19461018,0.00019746,2]
[364399272,1749090648931,-1006.2,0.000198,3]
[364399274,1749090648941,-603.007,0.00019862,2]
[364399276,1749090648950,-179.90094999,0.00019862,2]
[364399278,1749090648959,-942.05,0.00019886,2]
[364399280,1749090648970,-1228.62,0.00019886,2]
[364399282,1749090648979,-440.0,0.00019886,2]
[364399284,1749090648989,-1668.29,0.00019887,2]
[364399285,1749090648998,-591.16,0.00019887,2]
[364399287,1749090649007,-440.0,0.00019887,2]
[364399289,1749090649017,-1968.95,0.00019887,2]
[364399291,1749090649027,-440.0,0.00019887,2]
[364399293,1749090649037,-593.51,0.00019887,2]
[364399296,1749090649048,-440.0,0.00019887,2]
[364399298,1749090649058,-440.0,0.00019887,2]
[364399300,1749090649068,-164.89875755,0.00019887,2]
[364399301,1749090649078,-440.0,0.00019887,2]
[364399304,1749090649088,-550.07,0.00019887,2]
[364399306,1749090649097,-440.0,0.00019887,2]
[364399308,1749090649107,-1759.18,0.00019887,2]
[364399310,1749090649117,-450.0,0.00019888,2]
[364399311,1749090649126,-440.0,0.00019888,2]
[364399314,1749090649136,-473.01,0.00019888,2]
[364399315,1749090649146,-804.08,0.00019888,2]
[364399326,1749090649241,-502.34,0.00019888,2]
[364399328,1749090649252,-830.87,0.00019888,2]
[364399330,1749090649263,-851.67,0.00019888,2]
[364399332,1749090649273,-1485.65,0.00019888,2]
[364399334,1749090649283,-440.0,0.00019888,2]
[364399336,1749090649293,-1553.90674133,0.000199,2]
[364399338,1749090649303,-41508.0,0.0002,2]
[364399340,1749090649313,-502.4189967,0.0002,2]
[364399342,1749090649324,-188.40711459,0.0002,2]
[364399344,1749090649334,-6305.96068547,0.0002,2]
[364399346,1749090649345,-1182.60095131,0.0002,2]
[364399348,1749090649355,-360.11240348,0.0002,2]
[364399350,1749090649366,-30000.0,0.0002,2]
[364399352,1749090649377,-2683.30896616,0.0002,2]
[364399355,1749090649389,-7011.08892402,0.0002,2]
[364399357,1749090649399,-35237.8506919,0.0002,2]
[364399358,1749090649409,-65677.64746252,0.0002,2]
[364399360,1749090649419,-3301.7527924,0.0002,2]
[364399362,1749090649431,-500.7787268,0.0002,2]
[364399365,1749090649441,-4000.0,0.0002,4]
[364399366,1749090649452,-151.0,0.0002,2]
[364399368,1749090649461,-151.855658,0.0002,2]
[364399370,1749090649474,-1500.0,0.00020068,2]
[364399373,1749090649484,-942.05,0.0002016,2]
[364399375,1749090649495,-1228.62,0.0002016,2]
[364399377,1749090649505,-440.0,0.0002016,2]
[364399379,1749090649514,-1668.29,0.00020161,2]
[364399381,1749090649524,-591.16,0.00020161,2]
[364399383,1749090649534,-440.0,0.00020161,2]
[364399385,1749090649544,-1968.95,0.00020161,2]
[364399387,1749090649553,-440.0,0.00020161,2]
[364399389,1749090649563,-593.51,0.00020161,2]
[364399391,1749090649573,-440.0,0.00020161,2]
[364399393,1749090649582,-440.0,0.00020161,2]
[364399395,1749090649592,-440.0,0.00020161,2]
[364399397,1749090649602,-550.07,0.00020161,2]
[364399399,1749090649612,-440.0,0.00020161,2]
[364399401,1749090649622,-1759.18,0.00020161,2]
[364399403,1749090649631,-450.0,0.00020162,2]
[364399405,1749090649642,-440.0,0.00020162,2]
[364399407,1749090649652,-473.01,0.00020162,2]
[364399409,1749090649662,-804.08,0.00020162,2]
[364399411,1749090649673,-502.34,0.00020162,2]
[364399413,1749090649684,-830.87,0.00020162,2]
[364399415,1749090649694,-851.67,0.00020162,2]
[364399417,1749090649703,-1485.65,0.00020162,2]
[364399419,1749090649714,-440.0,0.00020162,2]
[364399421,1749090649724,-484.00177406,0.00020245,2]
[364399423,1749090649734,-942.05,0.00020434,2]
[364399424,1749090649742,-1228.62,0.00020434,2]
[364399426,1749090649752,-440.0,0.00020434,2]
[364399428,1749090649762,-1668.29,0.00020435,2]
[364399430,1749090649772,-591.16,0.00020435,2]
[364399433,1749090649782,-440.0,0.00020435,2]
[364399434,1749090649791,-1968.95,0.00020435,2]
[364399436,1749090649801,-440.0,0.00020435,2]
[364399438,1749090649810,-593.51,0.00020435,2]
[364399440,1749090649820,-440.0,0.00020435,2]
[364399442,1749090649830,-440.0,0.00020435,2]
[364399444,1749090649839,-440.0,0.00020435,2]
[364399445,1749090649848,-550.07,0.00020435,2]
[364399446,1749090649858,-440.0,0.00020435,2]
[364399447,1749090649869,-1759.18,0.00020435,2]
[364399448,1749090649878,-450.0,0.00020436,2]
[364399449,1749090649888,-440.0,0.00020436,2]
[364399450,1749090649898,-473.01,0.00020436,2]
[364399451,1749090649908,-804.08,0.00020436,2]
[364399452,1749090649918,-502.34,0.00020436,2]
[364399453,1749090649927,-830.87,0.00020436,2]
[364399454,1749090649937,-851.67,0.00020436,2]
[364399456,1749090649947,-1485.65,0.00020436,2]
[364399457,1749090649956,-440.0,0.00020436,2]
[364399459,1749090649966,-500.0,0.00020548,2]
[364399461,1749090649975,-500.0,0.00020548,2]
[364399463,1749090649985,-500.0,0.00020548,2]
[364399465,1749090649994,-500.0,0.00020548,2]
[364399467,1749090650004,-500.0,0.00020548,2]
[364399469,1749090650015,-500.0,0.00020548,2]
[364399471,1749090650025,-500.0,0.00020548,2]
[364399473,1749090650034,-500.0,0.00020548,2]
[364399475,1749090650044,-289.82689362,0.00020548,2]
[364399478,1749090650054,-207.4,0.00020553,2]